fUSD/lending_fUSD_20260218
["ID","MTS","AMOUNT","RATE_DAILY","PERIOD"]
[405889258,1771397453352,-169.309424,0.00016438,2]
[405889259,1771397453362,-900.0,0.00016438,2]
[405889260,1771397453372,-300.0,0.00016438,3]
[405889261,1771397453381,-300.0,0.00016438,3]
[405889262,1771397453391,-300.0,0.00016438,3]
[405889263,1771397453400,-300.0,0.00016438,3]
[405889264,1771397453410,-300.0,0.00016438,3]
[405889265,1771397453419,-156.0,0.00016438,2]
[405889266,1771397453429,-156.0,0.00016438,2]
[405889267,1771397453439,-156.0,0.00016438,2]
[405889268,1771397453449,-156.0,0.00016438,2]
[405889269,1771397453459,-156.0,0.00016438,2]
[405889270,1771397453468,-156.0,0.00016438,2]
[405889271,1771397453478,-156.0,0.00016438,2]
[405889272,1771397453487,-156.0,0.00016438,2]
[405889273,1771397453497,-156.0,0.00016438,2]
[405889274,1771397453507,-156.0,0.00016438,2]
[405889275,1771397453517,-237.34477627,0.00016438,2]
[405889276,1771397453527,-151.0,0.00016438,2]
[405889277,1771397453536,-151.0,0.00016438,2]
[405889278,1771397453546,-151.0,0.00016438,2]
[405889279,1771397453561,-151.0,0.00016438,2]
[405889280,1771397453571,-151.0,0.00016438,2]
[405889281,1771397453580,-151.0,0.00016438,2]
[405889282,1771397453592,-151.0,0.00016438,2]
[405889283,1771397453603,-151.0,0.00016438,2]
[405889284,1771397453612,-151.0,0.00016438,2]
[405889285,1771397453623,-525.514914,0.00016438,2]
[405889286,1771397453634,-525.514914,0.00016438,2]
[405889287,1771397453644,-525.514914,0.00016438,2]
[405889288,1771397453654,-525.514914,0.00016438,2]
[405889289,1771397453663,-525.514914,0.00016438,2]
[405889290,1771397453674,-525.514914,0.00016438,2]
[405889291,1771397453684,-525.514914,0.00016438,2]
[405889292,1771397453695,-1000.0,0.00016438,2]
[405889293,1771397453705,-525.514914,0.00016438,2]
[405889294,1771397453714,-525.514914,0.00016438,2]
[405889295,1771397453724,-525.514914,0.00016438,2]
[405889296,1771397453734,-525.514914,0.00016438,2]
[405889297,1771397453744,-525.514914,0.00016438,2]
[405889298,1771397453753,-445.105799,0.00016438,2]
[405889299,1771397453763,-445.105799,0.00016438,2]
[405889300,1771397453772,-445.105799,0.00016438,2]
[405889301,1771397453781,-445.105799,0.00016438,2]
[405889302,1771397453791,-445.105799,0.00016438,2]
[405889303,1771397453800,-445.105799,0.00016438,2]
[405889304,1771397453809,-445.105799,0.00016438,2]
[405889305,1771397453819,-445.105799,0.00016438,2]
[405889306,1771397453828,-445.105799,0.00016438,2]
[405889307,1771397453837,-445.105799,0.00016438,2]
[405889308,1771397453847,-445.105799,0.00016438,2]
[405889309,1771397453856,-999.04853715,0.00016438,2]
[405889310,1771397453865,-1535.74923491,0.00016438,2]
[405889311,1771397453875,-3000.0,0.00016438,2]
[405889312,1771397453884,-1000.0,0.0001645,2]
[405889313,1771397453894,-1000.0,0.00016465,2]
[405889314,1771397453903,-175.2871213,0.0001648,3]
[405889315,1771397453913,-1768.0,0.00016493,2]
[405889316,1771397453922,-150.0,0.000165,2]
[405889317,1771397453932,-260.4103811,0.00016515,2]
[405889318,1771397453942,-1000.0,0.00016543,2]
[405889319,1771397453952,-1768.0,0.00016548,2]
[405889320,1771397453962,-996.49958588,0.00016548,2]
[405889321,1771397453971,-150.0,0.0001656,24]
[405889322,1771397453980,-162.0,0.0001656,24]
[405889323,1771397453990,-1000.0,0.00016575,2]
[405889324,1771397454000,-378.0,0.00016584,2]
[405889325,1771397454009,-361.56905183,0.000166,2]
[405889326,1771397454018,-1000.0,0.000166,2]
[405889327,1771397454027,-1768.0,0.00016602,2]
[405889328,1771397454037,-469.75122408,0.00016612,2]
[405889329,1771397454046,-1768.0,0.00016657,2]
[405889330,1771397454055,-381.0,0.00016687,2]
[405889331,1771397454065,-381.0,0.00016691,2]
[405889332,1771397454074,-1768.0,0.00016712,2]
[405889333,1771397454083,-2848.7,0.00016712,2]
[405889334,1771397454092,-841.0,0.00016712,2]
[405889335,1771397454102,-1000.0,0.00016712,2]
[405889336,1771397454114,-199.26,0.00016712,2]
[405889337,1771397454124,-2835.0,0.0001672,2]
[405889338,1771397454133,-162.0,0.0001672,2]
[405889339,1771397454142,-2836.0,0.0001672,2]
[405889340,1771397454151,-2836.0,0.0001672,2]
[405889341,1771397454161,-2836.0,0.0001672,2]
[405889342,1771397454171,-152.0,0.00016721,12]
[405889343,1771397454180,-1000.0,0.00016731,2]
[405889344,1771397454191,-208.0,0.00016732,3]
[405889345,1771397454201,-291.0,0.00016732,3]
[405889346,1771397454210,-153.0,0.00016737,2]
[405889347,1771397454219,-153.0,0.00016737,2]
[405889348,1771397454228,-153.0,0.00016737,2]
[405889349,1771397454237,-153.0,0.00016737,2]
[405889350,1771397454246,-153.0,0.00016737,2]
[405889351,1771397454255,-153.0,0.00016737,2]
[405889352,1771397454265,-153.0,0.00016737,2]
[405889353,1771397454274,-153.0,0.00016737,2]
[405889354,1771397454283,-153.0,0.00016737,2]
[405889355,1771397454293,-1508.0,0.00016737,2]
[405889356,1771397454302,-1508.0,0.00016737,2]
[405889357,1771397454311,-472.62224057,0.00016737,2]
[405889358,1771397454320,-152.0,0.00016737,2]
[405889359,1771397454329,-152.0,0.00016737,2]
[405889360,1771397454338,-152.0,0.00016737,2]
[405889361,1771397454348,-381.0,0.0001675,2]
[405889362,1771397454357,-1000.0,0.00016751,2]
[405889363,1771397454366,-1768.0,0.00016767,2]
[405889364,1771397454375,-500.0,0.00016768,2]
[405889365,1771397454385,-1474.58,0.00016768,2]
[405889366,1771397454395,-1000.0,0.00016774,2]
[405889367,1771397454404,-150.0,0.00016788,24]
[405889368,1771397454412,-202.0,0.00016788,24]
[405889369,1771397454422,-381.0,0.00016799,2]
[405889370,1771397454431,-150.0,0.000168,2]
[405889371,1771397454440,-482.85706059,0.00016807,2]
[405889372,1771397454450,-1768.0,0.00016822,2]
[405889373,1771397454460,-566.38301502,0.0001683,2]
[405889374,1771397454470,-381.0,0.00016844,2]
[405889375,1771397454479,-1768.0,0.00016876,2]
[405889376,1771397454491,-407.0,0.00016894,2]
[405889377,1771397454501,-400.0,0.000169,6]
[405889378,1771397454510,-1000.0,0.00016906,2]
[405889379,1771397454519,-300.0,0.00016919,2]
[405889380,1771397454528,-300.0,0.00016919,2]
[405889381,1771397454539,-300.0,0.00016919,2]
[405889382,1771397454548,-1000.0,0.00016919,2]
[405889383,1771397454558,-300.0,0.00016919,2]
[405889384,1771397454567,-666.0,0.00016919,2]
[405889385,1771397454577,-46472.0,0.0001692,2]
[405889386,1771397454586,-381.0,0.00016924,2]
[405889387,1771397454598,-1768.0,0.00016931,2]
[405889388,1771397454607,-599.0,0.00016943,2]
[405889389,1771397454617,-381.0,0.00016949,2]
[405889390,1771397454627,-150.0,0.00016955,2]
[405889391,1771397454638,-851.03293945,0.00016965,2]
[405889392,1771397454647,-1768.0,0.00016986,2]
[405889393,1771397454656,-2848.7,0.00016986,2]
[405889394,1771397454666,-841.0,0.00016986,2]
[405889395,1771397454675,-201.63543106,0.00016986,2]
[405889396,1771397454685,-1000.0,0.00016986,2]
[405889397,1771397454694,-3500.0,0.00016986,2]
[405889398,1771397454703,-1846.16972481,0.0001699,2]
[405889399,1771397454712,-381.0,0.00016995,2]
[405889400,1771397454722,-300.0,0.00016998,2]
[405889401,1771397454731,-666.0,0.00016998,2]
[405889402,1771397454741,-300.0,0.00016998,2]
[405889403,1771397454750,-1013.62,0.00016999,2]
[405889404,1771397454759,-1013.62,0.00016999,2]
[405889405,1771397454768,-1013.62,0.00016999,2]
[405889406,1771397454777,-1013.62,0.00016999,2]
[405889407,1771397454786,-582.04,0.00016999,2]
[405889408,1771397454795,-582.04,0.00016999,2]
[405889409,1771397454804,-582.04,0.00016999,2]
[405889410,1771397454814,-582.04,0.00016999,2]
[405889411,1771397454823,-300.0,0.00016999,2]
[405889412,1771397454832,-300.0,0.00016999,2]
[405889413,1771397454841,-300.0,0.00016999,2]
[405889414,1771397454850,-300.0,0.00016999,2]
[405889415,1771397454859,-300.0,0.00016999,2]
[405889416,1771397454869,-300.0,0.00016999,2]
[405889417,1771397454878,-300.0,0.00016999,2]
[405889418,1771397454890,-666.0,0.00016999,2]
[405889419,1771397454900,-300.0,0.00016999,2]
[405889420,1771397454909,-893157.59491693,0.00017,2]
[405889421,1771397454919,-300.0,0.00017,2]
[405889422,1771397454929,-151.0,0.00017,2]
[405889423,1771397454938,-173.62051493,0.00017,3]
[405889424,1771397454947,-169.309424,0.00017,2]
[405889425,1771397454956,-169.309424,0.00017,2]
[405889426,1771397455185,-169.309424,0.00017,2]
[405889427,1771397455195,-169.309414,0.00017,2]
[405889428,1771397455204,-151.0,0.00017,2]
[405889429,1771397455213,-308.378029,0.00017,2]
[405889430,1771397455222,-308.378029,0.00017,2]
[405889431,1771397455231,-308.378029,0.00017,2]
[405889432,1771397455240,-308.378029,0.00017,2]
[405889433,1771397455249,-257.949707,0.00017,2]
[405889434,1771397455258,-257.949707,0.00017,2]
[405889435,1771397455267,-257.949707,0.00017,2]
[405889436,1771397455277,-257.949707,0.00017,2]
[405889437,1771397455286,-1019.064594,0.00017,2]
[405889438,1771397455295,-1019.064594,0.00017,2]
[405889439,1771397455304,-1019.064594,0.00017,2]
[405889440,1771397455313,-1019.064594,0.00017,2]
[405889441,1771397455322,-438.880734,0.00017,2]
[405889442,1771397455331,-151.0,0.00017,2]
[405889443,1771397455340,-438.880734,0.00017,2]
[405889444,1771397455349,-151.0,0.00017,2]
[405889445,1771397455358,-438.880734,0.00017,2]
[405889446,1771397455367,-438.880734,0.00017,2]
[405889447,1771397455377,-151.0,0.00017,2]
[405889448,1771397455386,-525.514914,0.00017,2]
[405889449,1771397455395,-525.514914,0.00017,2]
[405889450,1771397455404,-525.514914,0.00017,2]
[405889451,1771397455414,-525.514914,0.00017,2]
[405889452,1771397455423,-445.105799,0.00017,2]
[405889453,1771397455432,-445.105799,0.00017,2]
[405889454,1771397455441,-445.105799,0.00017,2]
[405889455,1771397455451,-1000.0,0.00017002,2]
[405889456,1771397455460,-666.0,0.00017039,2]
[405889457,1771397455470,-319.90825596,0.00017039,2]
[405889458,1771397455479,-2830.0,0.0001704,2]
[405889459,1771397455488,-842.0,0.0001704,2]
[405889460,1771397455498,-2836.0,0.0001704,2]
[405889461,1771397455507,-160.0,0.0001704,2]
[405889462,1771397455517,-1768.0,0.00017041,2]
[405889463,1771397455528,-1000.0,0.00017044,2]
[405889464,1771397455537,-300.0,0.00017047,24]
[405889465,1771397455546,-300.0,0.00017047,24]
[405889466,1771397455556,-300.0,0.00017047,24]
[405889467,1771397455566,-407.0,0.00017047,24]
[405889468,1771397455584,-367.0,0.00017049,2]
[405889469,1771397455604,-270.0455652,0.00017063,2]
[405889470,1771397455618,-1000.0,0.0001709,2]
[405889471,1771397455628,-1000.0,0.00017091,2]
[405889472,1771397455638,-1768.0,0.00017096,2]
[405889473,1771397455648,-1557.20080618,0.00017096,2]
[405889474,1771397455658,-150.0,0.000171,2]
[405889475,1771397455668,-1000.0,0.00017127,2]
[405889476,1771397455678,-152.0,0.00017128,13]
[405889477,1771397455688,-670.53907356,0.00017132,2]
[405889478,1771397455697,-63526.33344748,0.00017133,2]
[405889479,1771397455708,-208.0,0.00017137,3]
[405889480,1771397455718,-291.0,0.00017137,3]
[405889481,1771397455727,-150.0,0.00017142,2]
[405889482,1771397455737,-1768.0,0.0001715,2]
[405889483,1771397455747,-150.0,0.00017157,2]
[405889484,1771397455757,-1557.20080618,0.00017178,2]
[405889485,1771397455767,-1000.0,0.00017179,2]
[405889486,1771397455776,-381.0,0.0001718,2]
[405889487,1771397455785,-381.0,0.00017191,2]
[405889488,1771397455796,-482.85706059,0.00017198,2]
[405889489,1771397455805,-150.0,0.00017204,2]
[405889490,1771397455814,-1768.0,0.00017205,2]
[405889491,1771397455824,-381.0,0.00017207,2]
[405889492,1771397455833,-381.0,0.0001723,2]
[405889493,1771397455842,-1557.20080618,0.00017233,2]
[405889494,1771397455852,-150.0,0.00017243,2]
[405889495,1771397455861,-381.0,0.0001725,2]
[405889496,1771397455871,-1000.0,0.00017257,2]
[405889497,1771397455881,-1768.0,0.0001726,2]
[405889498,1771397455890,-2848.7,0.0001726,2]
[405889499,1771397455899,-841.0,0.0001726,2]
[405889500,1771397455909,-1000.0,0.0001726,2]
[405889501,1771397455919,-1000.0,0.00017262,2]
[405889502,1771397455928,-150.0,0.00017263,2]
[405889503,1771397455937,-1164.0,0.00017277,2]
[405889504,1771397455947,-1338.0,0.00017277,2]
[405889505,1771397455958,-617.0,0.00017277,2]
[405889506,1771397455968,-3492.0,0.00017277,2]
[405889507,1771397455977,-1275.0,0.00017277,2]
[405889508,1771397455986,-1209.0,0.00017277,2]
[405889509,1771397455996,-919.0,0.00017277,2]
[405889510,1771397456005,-5973.0,0.00017277,2]
[405889511,1771397456015,-1000.0,0.00017294,2]
[405889512,1771397456025,-160.0,0.000173,3]
[405889513,1771397456035,-150.0,0.00017304,2]
[405889514,1771397456044,-381.0,0.00017308,2]
[405889515,1771397456053,-1000.0,0.00017314,2]
[405889516,1771397456063,-1768.0,0.00017315,2]
[405889517,1771397456072,-1557.20080618,0.00017315,2]
[405889518,1771397456083,-1000.0,0.00017318,2]
[405889519,1771397456092,-1000.0,0.00017319,2]
[405889520,1771397456102,-1000.0,0.00017326,2]
[405889521,1771397456111,-150.0,0.00017334,2]
[405889522,1771397456120,-1000.0,0.00017338,2]
[405889523,1771397456129,-150.0,0.00017349,2]
[405889524,1771397456138,-970.0,0.0001736,2]
[405889525,1771397456148,-842.0,0.0001736,2]
[405889526,1771397456157,-2836.0,0.0001736,2]
[405889527,1771397456167,-2834.0,0.0001736,2]
[405889528,1771397456176,-2873.0,0.0001736,2]
[405889529,1771397456186,-150.0,0.00017369,2]
[405889530,1771397456195,-1768.0,0.0001737,2]
[405889531,1771397456204,-1557.20080618,0.0001737,2]
[405889532,1771397456214,-1000.0,0.00017394,2]
[405889533,1771397456223,-167.73514655,0.00017395,2]
[405889534,1771397456233,-150.0,0.000174,2]
[405889535,1771397456242,-2556.33728001,0.000174,5]
[405889536,1771397456251,-381.0,0.00017407,2]
[405889537,1771397456261,-150.0,0.00017415,2]
[405889538,1771397456271,-1768.0,0.00017424,2]
[405889539,1771397456280,-2000.0,0.00017452,7]
[405889540,1771397456290,-1557.20080618,0.00017452,2]
[405889541,1771397456299,-300.0,0.00017459,2]
[405889542,1771397456308,-46472.0,0.0001746,2]
[405889543,1771397456318,-381.0,0.00017465,2]
[405889544,1771397456327,-1768.0,0.00017479,2]
[405889545,1771397456336,-381.0,0.00017487,2]
[405889546,1771397456345,-381.0,0.00017487,2]
[405889547,1771397456355,-381.0,0.00017497,2]
[405889548,1771397456364,-500.0,0.00017499,2]
[405889549,1771397456374,-1474.58,0.00017499,2]
[405889550,1771397456383,-1000.0,0.000175,2]
[405889551,1771397456393,-253.31103297,0.00017501,2]
[405889552,1771397456402,-150.0,0.00017502,2]
[405889553,1771397456411,-1557.20080618,0.00017507,2]
[405889554,1771397456421,-381.0,0.00017507,2]
[405889555,1771397456430,-31433.03,0.0001752,2]
[405889556,1771397456440,-1768.0,0.00017534,2]
[405889557,1771397456449,-2848.7,0.00017534,2]
[405889558,1771397456459,-841.0,0.00017534,2]
[405889559,1771397456469,-1000.0,0.00017534,2]
[405889560,1771397456479,-1262.81883542,0.00017534,2]
[405889561,1771397456488,-152.0,0.00017534,14]
[405889562,1771397456497,-381.0,0.00017535,2]
[405889563,1771397456507,-208.0,0.00017542,3]
[405889564,1771397456517,-291.0,0.00017542,3]
[405889565,1771397456527,-599.0,0.00017587,3]
[405889566,1771397456536,-1768.0,0.00017589,2]
[405889567,1771397456546,-1557.20080618,0.00017589,2]
[405889568,1771397456555,-482.85706059,0.00017589,2]
[405889569,1771397456565,-400.0,0.000176,6]
[405889570,1771397456574,-381.0,0.00017611,2]
[405889571,1771397456584,-280.03725112,0.00017611,2]
[405889572,1771397456598,-381.0,0.00017613,2]
[405889573,1771397456607,-1768.0,0.00017643,2]
[405889574,1771397456616,-1557.20080618,0.00017644,2]
[405889575,1771397456626,-1000.0,0.00017656,2]
[405889576,1771397456638,-150.0,0.00017675,2]
[405889577,1771397456648,-2836.0,0.0001768,2]
[405889578,1771397456657,-1779.00422986,0.00017698,2]
[405889579,1771397456667,-150.0,0.000177,2]
[405889580,1771397456677,-784.44122355,0.000177,2]
[405889581,1771397456686,-403.0,0.000177,5]
[405889582,1771397456696,-400.0,0.000177,6]
[405889583,1771397456706,-1000.0,0.00017705,2]
[405889584,1771397456716,-150.0,0.00017725,2]
[405889585,1771397456725,-500.0,0.00017726,7]
[405889586,1771397456735,-1557.20080618,0.00017726,2]
[405889587,1771397456745,-1000.0,0.00017742,2]
[405889588,1771397456754,-441.0,0.00017745,2]
[405889589,1771397456764,-381.0,0.00017748,2]
[405889590,1771397456774,-381.0,0.00017758,2]
[405889591,1771397456783,-1557.20080618,0.00017781,2]
[405889592,1771397456793,-381.0,0.00017798,2]
[405889593,1771397456802,-1068.0,0.000178,6]
[405889594,1771397456811,-894.24,0.00017808,2]
[405889595,1771397456820,-2848.7,0.00017808,2]
[405889596,1771397456829,-500.0,0.00017808,2]
[405889597,1771397456839,-500.0,0.00017808,2]
[405889598,1771397456848,-500.0,0.00017808,2]
[405889599,1771397456858,-500.0,0.00017808,2]
[405889600,1771397456867,-500.0,0.00017808,2]
[405889601,1771397456876,-250.0,0.00017808,2]
[405889602,1771397456886,-500.0,0.00017808,2]
[405889603,1771397456895,-500.0,0.00017808,2]
[405889604,1771397456905,-500.0,0.00017808,2]
[405889605,1771397456915,-500.0,0.00017808,2]
[405889606,1771397456924,-500.0,0.00017808,2]
[405889607,1771397456933,-500.0,0.00017808,2]
[405889608,1771397456943,-500.0,0.00017808,2]
[405889609,1771397456952,-500.0,0.00017808,2]
[405889610,1771397456962,-500.0,0.00017808,2]
[405889611,1771397456971,-500.0,0.00017808,2]
[405889612,1771397456981,-500.0,0.00017808,2]
[405889613,1771397456990,-841.0,0.00017808,2]
[405889614,1771397456999,-1000.0,0.00017808,2]
[405889615,1771397457009,-800.0,0.00017808,2]
[405889616,1771397457019,-250.0,0.00017808,20]
[405889617,1771397457028,-250.0,0.00017808,20]
[405889618,1771397457038,-250.0,0.00017808,20]
[405889619,1771397457047,-250.0,0.00017808,20]
[405889620,1771397457057,-250.0,0.00017808,20]
[405889621,1771397457066,-250.0,0.00017808,20]
[405889622,1771397457075,-250.0,0.00017808,20]
[405889623,1771397457085,-175.581631,0.00017808,20]
[405889624,1771397457095,-150.0,0.0001784,2]
[405889625,1771397457104,-1004.26991434,0.0001786,2]
[405889626,1771397457113,-500.0,0.00017863,2]
[405889627,1771397457122,-1557.20080618,0.00017863,2]
[405889628,1771397457133,-58797.80311469,0.00017867,2]
[405889629,1771397457142,-200.0,0.0001787,7]
[405889630,1771397457151,-150.0,0.00017872,2]
[405889631,1771397457160,-500.0,0.00017885,2]
[405889632,1771397457170,-1474.58,0.00017885,2]
[405889633,1771397457179,-500.0,0.00017892,2]
[405889634,1771397457188,-500.0,0.00017892,2]
[405889635,1771397457198,-500.0,0.00017892,2]
[405889636,1771397457207,-500.0,0.00017892,2]
[405889637,1771397457216,-1479.65,0.00017892,2]
[405889638,1771397457226,-1479.65,0.00017892,2]
[405889639,1771397457235,-500.0,0.00017892,2]
[405889640,1771397457245,-500.0,0.00017892,2]
[405889641,1771397457254,-528.95515963,0.00017892,2]
[405889642,1771397457263,-500.0,0.00017892,2]
[405889643,1771397457272,-500.0,0.00017892,2]
[405889644,1771397457281,-500.0,0.00017892,2]
[405889645,1771397457290,-500.0,0.00017892,2]
[405889646,1771397457300,-500.0,0.00017892,2]
[405889647,1771397457309,-500.0,0.00017892,2]
[405889648,1771397457318,-1000.0,0.00017893,2]
[405889649,1771397457327,-1013.62,0.00017899,2]
[405889650,1771397457336,-1013.62,0.00017899,2]
[405889651,1771397457345,-1013.62,0.00017899,2]
[405889652,1771397457354,-1013.62,0.00017899,2]
[405889653,1771397457363,-1013.7930367,0.00017899,2]
[405889654,1771397457372,-582.04,0.00017899,2]
[405889655,1771397457381,-582.04,0.00017899,2]
[405889656,1771397457391,-582.04,0.00017899,2]
[405889657,1771397457400,-582.04,0.00017899,2]
[405889658,1771397457409,-582.04,0.00017899,2]
[405889659,1771397457418,-500.0,0.000179,2]
[405889660,1771397457427,-500.0,0.000179,2]
[405889661,1771397457437,-500.0,0.000179,2]
[405889662,1771397457447,-500.0,0.000179,2]
[405889663,1771397457456,-500.0,0.000179,2]
[405889664,1771397457466,-500.0,0.000179,2]
[405889665,1771397457475,-500.0,0.000179,2]
[405889666,1771397457484,-890.73,0.000179,2]
[405889667,1771397457494,-328.02641425,0.000179,2]
[405889668,1771397457504,-63526.33344748,0.000179,2]
[405889669,1771397457513,-1564.34985344,0.000179,2]
[405889670,1771397457522,-1564.3498533,0.000179,2]
[405889671,1771397457531,-1564.3498533,0.000179,2]
[405889672,1771397457539,-1564.3498533,0.000179,2]
[405889673,1771397457548,-1564.3498533,0.000179,2]
[405889674,1771397457557,-1564.3498533,0.000179,2]
[405889675,1771397457566,-1564.3498533,0.000179,2]
[405889676,1771397457576,-1564.3498533,0.000179,2]
[405889677,1771397457585,-1564.3498533,0.000179,2]
[405889678,1771397457599,-1564.3498533,0.000179,2]
[405889679,1771397457609,-616.82823154,0.000179,2]
[405889680,1771397457618,-1564.3498533,0.000179,2]
[405889681,1771397457627,-8063.04597772,0.000179,2]
[405889682,1771397457637,-1564.3498533,0.000179,2]
[405889683,1771397457646,-1564.3498533,0.000179,2]
[405889684,1771397457655,-1564.3498533,0.000179,2]
[405889685,1771397457665,-150.0,0.00017916,2]
[405889686,1771397457675,-500.0,0.00017918,2]
[405889687,1771397457684,-381.0,0.00017925,2]
[405889688,1771397457694,-381.0,0.00017925,2]
[405889689,1771397457704,-1000.0,0.00017934,2]
[405889690,1771397457713,-152.0,0.00017941,15]
[405889691,1771397457930,-378.0,0.00017944,2]
[405889692,1771397457940,-150.0,0.00017947,2]
[405889693,1771397457950,-208.0,0.00017947,3]
[405889694,1771397457960,-291.0,0.00017947,3]
[405889695,1771397457969,-150.0,0.00017955,2]
[405889696,1771397457978,-500.0,0.00017969,2]
[405889697,1771397457987,-500.0,0.00017969,2]
[405889698,1771397457997,-1479.65,0.00017969,2]
[405889699,1771397458006,-500.0,0.00017969,2]
[405889700,1771397458015,-500.0,0.00017969,2]
[405889701,1771397458024,-500.0,0.00017969,2]
[405889702,1771397458033,-500.0,0.00017969,2]
[405889703,1771397458042,-407.23540886,0.0001797,2]
[405889704,1771397458051,-400.0,0.0001797,2]
[405889705,1771397458061,-402.48962576,0.0001797,2]
[405889706,1771397458071,-500.0,0.00017972,2]
[405889707,1771397458080,-1474.58,0.00017972,2]
[405889708,1771397458088,-500.0,0.00017972,2]
[405889709,1771397458097,-181.0,0.00017973,2]
[405889710,1771397458107,-324.11452571,0.00017973,2]
[405889711,1771397458116,-7921.88176508,0.00017974,2]
[405889712,1771397458126,-158.88476723,0.00017978,2]
[405889713,1771397458135,-152.0,0.00017978,2]
[405889714,1771397458144,-152.0,0.00017978,2]
[405889715,1771397458153,-152.0,0.00017978,2]
[405889716,1771397458162,-152.0,0.00017978,2]
[405889717,1771397458171,-152.0,0.00017978,2]
[405889718,1771397458180,-152.0,0.00017978,2]
[405889719,1771397458189,-152.0,0.00017978,2]
[405889720,1771397458199,-1000.0,0.0001798,2]
[405889721,1771397458208,-300.0,0.00017981,2]
[405889722,1771397458217,-300.0,0.00017981,2]
[405889723,1771397458226,-20499.10730416,0.00017982,4]
[405889724,1771397458235,-92123.30359276,0.00017982,4]
[405889725,1771397458244,-500.0,0.00017983,2]
[405889726,1771397458253,-500.0,0.00017983,2]
[405889727,1771397458262,-500.0,0.00017983,2]
[405889728,1771397458271,-1474.58,0.00017983,2]
[405889729,1771397458280,-1474.58,0.00017983,2]
[405889730,1771397458289,-1474.58,0.00017983,2]
[405889731,1771397458298,-500.0,0.00017983,2]
[405889732,1771397458308,-500.0,0.00017983,2]
[405889733,1771397458317,-500.0,0.00017983,2]
[405889734,1771397458326,-500.0,0.00017983,2]
[405889735,1771397458335,-1479.65,0.00017983,2]
[405889736,1771397458344,-1479.65,0.00017983,2]
[405889737,1771397458353,-203.81274187,0.00017983,2]
[405889738,1771397458362,-500.0,0.00017983,2]
[405889739,1771397458371,-591.86390297,0.00017983,2]
[405889740,1771397458380,-500.0,0.00017983,2]
[405889741,1771397458390,-500.0,0.00017983,2]
[405889742,1771397458399,-500.0,0.00017983,2]
[405889743,1771397458408,-500.0,0.00017983,2]
[405889744,1771397458417,-300.0,0.00017984,2]
[405889745,1771397458427,-300.0,0.00017984,2]
[405889746,1771397458436,-2078.03494059,0.0001799,2]
[405889747,1771397458446,-1846.16972481,0.0001799,2]
[405889748,1771397458456,-300.0,0.00017998,2]
[405889749,1771397458466,-617.86272704,0.00017999,2]
[405889750,1771397458475,-1474.58,0.00017999,2]
[405889751,1771397458484,-1474.58,0.00017999,2]
[405889752,1771397458493,-1474.58,0.00017999,2]
[405889753,1771397458503,-1474.58,0.00017999,2]
[405889754,1771397458512,-1474.58,0.00017999,2]
[405889755,1771397458522,-1474.58,0.00017999,2]
[405889756,1771397458531,-1474.58,0.00017999,2]
[405889757,1771397458540,-1474.58,0.00017999,2]